{"text_format":"1","workbook":"xlsx","n_sheets":4,"sheets":["AIDE","Technique et combat","combat par équipe","DATA-INFO"],"not_rendered":{"charts":0,"images":8,"macros":1,"external_links":1,"defined_names":14,"comments":1,"pivot_tables":0},"unopened":[],"bounds":{"document_bytes":16777216,"sheet_cells":100000,"rows_first":2000,"rows_last":500,"rows_between":2000,"halvings":0,"cell_chars":16384,"cell_head_chars":4096},"cells_cut":0,"cells_raw":0,"read":"whole","date_system":"1900"}

{"sheet":"AIDE","index":0,"n_rows":79,"n_cols":11,"rows_kept":79,"cut":false,"hidden":false,"merged":[[2,10,15,16]]}
[]
[]
[null,null,null,null,null,null,null,null,null,null,"\nAfin de vous aider lors de la saisie, il a été intégré des nouvelles fonctions et informations d'aide à la saisie, dont voici les principales descriptions\n\nAttention, ne pas ajouter/supprimer modifier l'ordre des colonnes sous peine d'inscription erronnée"]
[]
[]
[]
[]
[]
[]
[]
[]
[]
[]
[]
[]
[]
[null,"Informations à connaître lors de la saisie de l'onglet technique et combat"]
[]
[]
[]
[]
[]
[]
[]
[]
[]
[]
[]
[]
[]
[]
[]
[]
[]
[]
[]
[]
[]
[]
[]
[]
[]
[]
[]
[]
[]
[]
[]
[]
[]
[]
[]
[]
[]
[]
[]
[]
[]
[]
[]
[]
[]
[]
[]
[]
[]
[]
[]
[]
[]
[]
[]
[]
[]
[]
[]
[]
[]
[null,"Informations à connaître lors de la saisie de l'onglet combat par équipe"]

{"sheet":"Technique et combat","index":1,"n_rows":67,"n_cols":88,"rows_kept":67,"cut":false,"hidden":false,"merged":[[6,48,7,48],[2,44,3,48],[4,44,5,48],[2,23,3,31],[5,19,5,21],[6,23,7,31],[4,33,5,33],[2,40,3,42],[5,40,5,41],[6,40,7,42],[6,35,7,38],[6,18,7,21],[2,18,3,21],[4,23,5,31],[6,2,8,3],[1,6,1,9],[2,6,2,9],[1,2,3,3],[6,11,7,16],[5,11,5,13],[1,13,1,16],[4,11,4,16],[2,13,2,16],[4,2,5,3],[5,14,5,16]]}
[]
[null,null," CHAMPIONNAT DE FRANCE  VOVINAM VIET VO  DAO\n Cadets, Juniors, Seniors\n mars 2016",null,null,"N° club  : ",null,null,null,null,null,null,"Nom :  "]
[null,null,null,null,null,"Ville : ",null,null,null,null,null,null,"Tél : ",null,null,null,null,null,"Indiquer le n° de l'équipe constituée ex :  1",null,null,null,null,"Indiquer le n° de l'équipe constituée ex :  1",null,null,null,null,null,null,null,null,null,null,null,null,null,null,null,null,"Indiquer le n° de l'équipe constituée ex :  1",null,null,null,"Indiquer le n° de l'équipe constituée ex :  1"]
[]
[null,null,"Tableau d'inscription",null,null,null,null,null,null,null,null,"Quyen",null,null,null,null,null,null,"Song luyen",null,null,null,null,"Da luyen, Tu Vé, Don chan et\n quyen à 3",null,null,null,null,null,null,null,null,null,"Combat",null,"Quyen",null,null,null,null,"Song luyen",null,null,null,"Da luyen, Tu Vé, Don chan et\n quyen à 3"]
[null,null,null,null,"Remarque : Indiquer le N° d'équipe au niveau des Song Luyen, Da luyen, Tu Ve Nu  Gioi et Don Chan Tan Cong : N° identique pour chaque membre de l'équipe",null,null,null,null,null,null,"Mains nues",null,null,"Avec arme",null,null,null,"Mains nues","Avec arme",null,null,null,null,null,null,null,null,null,null,null,null,null,null,null,"Mains nues","Avec arme",null,null,null,"Mains nues",null,"Avec arme"]
[null,null,"Cellule sur fond gris : épreuve incompatible avec la catégorie ou le sexe",null,null,null,null,null,null,null,null,"Masculin",null,null,null,null,null,null,"Masculin",null,null,null,null,"Masculin",null,null,null,null,null,null,null,null,null,"F",null,"Féminin",null,null,null,null,"Féminin",null,null,null,"F",null,"F",null,"Féminin"]
[null,null,null,null,null,null,null,null,null," M : catégorie masculine,      F : catégorie féminine  ",null,null,null,null,null,null,null,null,null,null,null,null,null,null,null,null,null,null,null,null,null,null,null,"M",null,null,null,null,null,null,null,null,null,null,"Adv. Mas.",null,"Adv. Mas."]
[null,null,null,null,null,null,null,null,null,"C : CADET,     J : JUNIOR,      S : SENIOR  ",null,"C J","S","S","J S","S","S",null,"C J S","S","J S","S",null,"J S",null,"S",null,"J S",null,"C",null,"S",null,"C J S",null,"C J S","S","J S","S",null,"C","J","J S",null,"J",null,"C J S",null,"S",null,"C J","S","S","J S","S","S",null,"C J S","S","J S","S",null,"J S",null,"S",null,"J",null,"C",null,"S",null,"C J S",null,"C J S","S","J S","S",null,"C","J","J S",null,"J",null,"C J S",null,"S"]
["Club","Ville","NOM","PRENOM","SEXE\nF \nou \nM","Année  naissance\n\n(XXXX)","N° licence FFKDA","Poids","Indication catégorie","Indication catégorie combat",null,"Long ho quyen","Ngu môn quyen","Thâp thê bát thûc quyen","Tinh hoa luông nghi kiêm pháp","Tu tuông côn pháp","Nhat nguyet dai dao phap",null,"Song luyên ba \n21ème ciseau","Song luyên dao ","Song luyên kiêm ","Song Luyên ma tau",null,"Da luyên\n  SANS  ARME\n  - 4 personnes",null,"Da luyên\n  AVEC ARME\n  - 4 personnes",null,"Dòn chân\n  - 4 personnes",null,"Quyen dong doi nam\nThap tu quyen à 3\n",null,"Quyen dong doi nam\nLong ho quyen à 3\n",null,"Combat",null,"Long ho quyen","Song dao pháp","Tinh hoa luông nghi kiêm pháp","Thai cuc  don dao phap",null,"Song luyên môt ","Song luyên ba \n21ème ciseau","Song luyên kiêm ",null,"Da luyên\n SANS ARME                                      - 1 fille contre\n3 hommes\n",null,"Tu vé nu gioi\n1 fille contre\n1 homme",null,"Quyen dong doi nam\nThap tu quyen à 3",null,"Long ho quyen","Ngu môn quyen","Thâp thê bát thûc quyen","Tinh hoa luông nghi kiêm pháp","Tu tuông côn pháp","Nhat nguyet dai dao phap",null,"Song luyên ba \n21ème ciseau","Song luyên dao ","Song luyên kiêm ","Song Luyên ma tau",null,"Da luyên\n  SANS  ARMES\n  - 4 personnes",null,"Da luyên\n  AVEC ARMES\n  - 4 personnes",null,"Dòn chân\n  - 4 personnes",null,"Quyen dong doi nam\nThap tu quyen à 3\n",null,"Quyen dong doi nam\nLong ho quyen à 3\n",null,"Combat",null,"Long ho quyen","Song dao pháp","Tinh hoa luông nghi kiêm pháp","Thai cuc  don dao phap",null,"Song luyên môt ","Song luyên ba \n21ème ciseau","Song luyên kiêm ",null,"Da luyên\n SANS ARMES                                      - 1 fille contre\n3 hommes\n",null,"Tu vé nu gioi\n1 fille contre\n1 homme",null,"Quyen dong doi nam\nThap tu quyen à 3\n"]
[{"$f":"$G$2","v":0},{"$f":"$G$3","v":0},"GRANDIN -EXEMPLE","Patrick","M",2000,"12345678Y",50,{"$f":"IFERROR(VLOOKUP(F11,choix_categorie,2,FALSE),\"\")","v":"CADET"},{"$f":"IF(AH11<>\"\",IFERROR(VLOOKUP(E11&LEFT(I11,1)&H11,choix_poids,2),\"\"),\"\")","v":"Moins de 52 kg"},null,"X",null,null,null,null,null,null,null,null,null,null,null,null,null,null,null,null,null,null,null,null,null,"X",null,null,null,null,null,null,null,null,null,null,1,null,null,null,null,null,{"$f":"IF(ISERROR(SEARCH(LEFT($I11,1),L$9,1)),0,IF($I11<>\"\",1,\"\"))","v":1},0,0,0,0,0,null,{"$f":"IF(ISERROR(SEARCH(LEFT($I11,1),S$9,1)),0,IF($I11<>\"\",1,\"\"))","v":1},{"$f":"IF(ISERROR(SEARCH(LEFT($I11,1),T$9,1)),0,IF($I11<>\"\",1,\"\"))","v":0},{"$f":"IF(ISERROR(SEARCH(LEFT($I11,1),U$9,1)),0,IF($I11<>\"\",1,\"\"))","v":0},{"$f":"IF(ISERROR(SEARCH(LEFT($I11,1),V$9,1)),0,IF($I11<>\"\",1,\"\"))","v":0},null,{"$f":"IF(ISERROR(SEARCH(LEFT($I11,1),X$9,1)),0,IF($I11<>\"\",1,\"\"))","v":0},null,{"$f":"IF(ISERROR(SEARCH(LEFT($I11,1),Z$9,1)),0,IF($I11<>\"\",1,\"\"))","v":0},null,{"$f":"IF(ISERROR(SEARCH(LEFT($I11,1),AB$9,1)),0,IF($I11<>\"\",1,\"\"))","v":0},null,{"$f":"IF(ISERROR(SEARCH(LEFT($I11,1),AD$9,1)),0,IF($I11<>\"\",1,\"\"))","v":1},null,{"$f":"IF(ISERROR(SEARCH(LEFT($I11,1),AF$9,1)),0,IF($I11<>\"\",1,\"\"))","v":0},null,{"$f":"IF(ISERROR(SEARCH(LEFT($I11,1),AH$9,1)),0,IF($I11<>\"\",1,\"\"))","v":1},null,{"$f":"IF(ISERROR(SEARCH(LEFT($I11,1),AJ$9,1)),0,IF($I11<>\"\",1,\"\"))","v":1},{"$f":"IF(ISERROR(SEARCH(LEFT($I11,1),AK$9,1)),0,IF($I11<>\"\",1,\"\"))","v":0},{"$f":"IF(ISERROR(SEARCH(LEFT($I11,1),AL$9,1)),0,IF($I11<>\"\",1,\"\"))","v":0},{"$f":"IF(ISERROR(SEARCH(LEFT($I11,1),AM$9,1)),0,IF($I11<>\"\",1,\"\"))","v":0},null,{"$f":"IF(ISERROR(SEARCH(LEFT($I11,1),AO$9,1)),0,IF($I11<>\"\",1,\"\"))","v":1},{"$f":"IF(ISERROR(SEARCH(LEFT($I11,1),AP$9,1)),0,IF($I11<>\"\",1,\"\"))","v":0},{"$f":"IF(ISERROR(SEARCH(LEFT($I11,1),AQ$9,1)),0,IF($I11<>\"\",1,\"\"))","v":0},null,{"$f":"IF(ISERROR(SEARCH(IF($I11<>\"\",LEFT($I11,1),\"X\"),AS$9,1)),IF(E11=\"M\",1,IF(E11=\"F\",0,\"\")),1)","v":1},null,{"$f":"IF(ISERROR(SEARCH(LEFT($I11,1),AU$9,1)),0,IF($I11<>\"\",1,\"\"))","v":1},null,{"$f":"IF(ISERROR(SEARCH(LEFT($I11,1),AW$9,1)),0,IF($I11<>\"\",1,\"\"))","v":0}]
[0,0,"PHILIPS-EXEMPLE","Bernard","M",1999,"12345678Y",52,"JUNIOR","Moins de 55 kg",null,"X",null,null,"X",null,null,null,1,null,1,null,null,1,null,null,null,null,null,null,null,null,null,"X",null,null,null,null,null,null,null,null,null,null,1,null,1,null,null,null,{"$f":"IF(ISERROR(SEARCH(LEFT($I12,1),L$9,1)),0,IF($I12<>\"\",1,\"\"))","v":1},{"$f":"IF(ISERROR(SEARCH(LEFT($I12,1),M$9,1)),0,IF($I12<>\"\",1,\"\"))","v":0},{"$f":"IF(ISERROR(SEARCH(LEFT($I12,1),N$9,1)),0,IF($I12<>\"\",1,\"\"))","v":0},{"$f":"IF(ISERROR(SEARCH(LEFT($I12,1),O$9,1)),0,IF($I12<>\"\",1,\"\"))","v":1},{"$f":"IF(ISERROR(SEARCH(LEFT($I12,1),P$9,1)),0,IF($I12<>\"\",1,\"\"))","v":0},{"$f":"IF(ISERROR(SEARCH(LEFT($I12,1),Q$9,1)),0,IF($I12<>\"\",1,\"\"))","v":0},null,{"$f":"IF(ISERROR(SEARCH(LEFT($I12,1),S$9,1)),0,IF($I12<>\"\",1,\"\"))","v":1},{"$f":"IF(ISERROR(SEARCH(LEFT($I12,1),T$9,1)),0,IF($I12<>\"\",1,\"\"))","v":0},{"$f":"IF(ISERROR(SEARCH(LEFT($I12,1),U$9,1)),0,IF($I12<>\"\",1,\"\"))","v":1},{"$f":"IF(ISERROR(SEARCH(LEFT($I12,1),V$9,1)),0,IF($I12<>\"\",1,\"\"))","v":0},null,{"$f":"IF(ISERROR(SEARCH(LEFT($I12,1),X$9,1)),0,IF($I12<>\"\",1,\"\"))","v":1},null,{"$f":"IF(ISERROR(SEARCH(LEFT($I12,1),Z$9,1)),0,IF($I12<>\"\",1,\"\"))","v":0},null,{"$f":"IF(ISERROR(SEARCH(LEFT($I12,1),AB$9,1)),0,IF($I12<>\"\",1,\"\"))","v":1},null,{"$f":"IF(ISERROR(SEARCH(LEFT($I12,1),AD$9,1)),0,IF($I12<>\"\",1,\"\"))","v":0},null,{"$f":"IF(ISERROR(SEARCH(LEFT($I12,1),AF$9,1)),0,IF($I12<>\"\",1,\"\"))","v":0},null,1,null,{"$f":"IF(ISERROR(SEARCH(LEFT($I12,1),AJ$9,1)),0,IF($I12<>\"\",1,\"\"))","v":1},{"$f":"IF(ISERROR(SEARCH(LEFT($I12,1),AK$9,1)),0,IF($I12<>\"\",1,\"\"))","v":0},{"$f":"IF(ISERROR(SEARCH(LEFT($I12,1),AL$9,1)),0,IF($I12<>\"\",1,\"\"))","v":1},{"$f":"IF(ISERROR(SEARCH(LEFT($I12,1),AM$9,1)),0,IF($I12<>\"\",1,\"\"))","v":0},null,{"$f":"IF(ISERROR(SEARCH(LEFT($I12,1),AO$9,1)),0,IF($I12<>\"\",1,\"\"))","v":0},{"$f":"IF(ISERROR(SEARCH(LEFT($I12,1),AP$9,1)),0,IF($I12<>\"\",1,\"\"))","v":1},{"$f":"IF(ISERROR(SEARCH(LEFT($I12,1),AQ$9,1)),0,IF($I12<>\"\",1,\"\"))","v":1},null,1,null,{"$f":"IF(ISERROR(SEARCH(LEFT($I12,1),AU$9,1)),0,IF($I12<>\"\",1,\"\"))","v":1},null,{"$f":"IF(ISERROR(SEARCH(LEFT($I12,1),AW$9,1)),0,IF($I12<>\"\",1,\"\"))","v":0}]
[0,0,"MARTIN - EXEMPLE","Pascal","M",1970,"12345678Y",72,"SENIOR","Moins de 75 kg",null,null,"X","X","X","X","X",null,1,null,1,null,null,1,null,null,null,null,null,null,null,null,null,"X",null,null,null,null,null,null,null,null,null,null,1,null,null,null,null,null,0,1,1,1,1,1,null,1,1,1,1,null,1,null,1,null,1,null,0,null,1,null,1,null,1,1,1,1,null,0,0,1,null,1,null,1,null,1]
[0,0,"DUBOIS - EXEMPLE","Géraldine","F",1999,"12345678Y",null,"JUNIOR","",null,null,null,null,null,null,null,null,null,null,null,null,null,null,null,null,null,null,null,null,null,null,null,null,null,null,null,"X",null,null,null,1,1,null,1,null,1,null,null,null,1,0,0,1,0,0,null,1,0,1,0,null,1,null,0,null,1,null,0,null,0,null,1,null,1,0,1,0,null,0,1,1,null,{"$f":"IF(ISERROR(SEARCH(IF($I14<>\"\",LEFT($I14,1),\"X\"),AS$9,1)),IF(E14=\"M\",1,IF(E14=\"F\",0,\"\")),1)","v":1},null,1,null,0]
[0,0,null,null,null,null,null,null,"","",null,null,null,null,null,null,null,null,null,null,null,null,null,null,null,null,null,null,null,null,null,null,null,null,null,null,null,null,null,null,null,null,null,null,null,null,null,null,null,null,"","","","","","",null,"","","","",null,"",null,"",null,"",null,"",null,"",null,"",null,"","","","",null,"","","",null,{"$f":"IF(ISERROR(SEARCH(IF($I15<>\"\",LEFT($I15,1),\"X\"),AS$9,1)),IF(E15=\"M\",1,IF(E15=\"F\",0,\"\")),1)","v":""},null,"",null,""]
[0,0,null,null,null,null,null,null,"","",null,null,null,null,null,null,null,null,null,null,null,null,null,null,null,null,null,null,null,null,null,null,null,null,null,null,null,null,null,null,null,null,null,null,null,null,null,null,null,null,"","","","","","",null,"","","","",null,"",null,"",null,"",null,"",null,"",null,"",null,"","","","",null,"","","",null,"",null,"",null,""]
[0,0,null,null,null,null,null,null,"","",null,null,null,null,null,null,null,null,null,null,null,null,null,null,null,null,null,null,null,null,null,null,null,null,null,null,null,null,null,null,null,null,null,null,null,null,null,null,null,null,"","","","","","",null,"","","","",null,"",null,"",null,"",null,"",null,"",null,"",null,"","","","",null,"","","",null,"",null,"",null,""]
[0,0,null,null,null,null,null,null,"","",null,null,null,null,null,null,null,null,null,null,null,null,null,null,null,null,null,null,null,null,null,null,null,null,null,null,null,null,null,null,null,null,null,null,null,null,null,null,null,null,"","","","","","",null,"","","","",null,"",null,"",null,"",null,"",null,"",null,"",null,"","","","",null,"","","",null,"",null,"",null,""]
[0,0,null,null,null,null,null,null,"","",null,null,null,null,null,null,null,null,null,null,null,null,null,null,null,null,null,null,null,null,null,null,null,null,null,null,null,null,null,null,null,null,null,null,null,null,null,null,null,null,"","","","","","",null,"","","","",null,"",null,"",null,"",null,"",null,"",null,"",null,"","","","",null,"","","",null,"",null,"",null,""]
[0,0,null,null,null,null,null,null,"","",null,null,null,null,null,null,null,null,null,null,null,null,null,null,null,null,null,null,null,null,null,null,null,null,null,null,null,null,null,null,null,null,null,null,null,null,null,null,null,null,"","","","","","",null,"","","","",null,"",null,"",null,"",null,"",null,"",null,"",null,"","","","",null,"","","",null,"",null,"",null,""]
[0,0,null,null,null,null,null,null,"","",null,null,null,null,null,null,null,null,null,null,null,null,null,null,null,null,null,null,null,null,null,null,null,null,null,null,null,null,null,null,null,null,null,null,null,null,null,null,null,null,"","","","","","",null,"","","","",null,"",null,"",null,"",null,"",null,"",null,"",null,"","","","",null,"","","",null,"",null,"",null,""]
[0,0,null,null,null,null,null,null,"","",null,null,null,null,null,null,null,null,null,null,null,null,null,null,null,null,null,null,null,null,null,null,null,null,null,null,null,null,null,null,null,null,null,null,null,null,null,null,null,null,"","","","","","",null,"","","","",null,"",null,"",null,"",null,"",null,"",null,"",null,"","","","",null,"","","",null,"",null,"",null,""]
[0,0,null,null,null,null,null,null,"","",null,null,null,null,null,null,null,null,null,null,null,null,null,null,null,null,null,null,null,null,null,null,null,null,null,null,null,null,null,null,null,null,null,null,null,null,null,null,null,null,"","","","","","",null,"","","","",null,"",null,"",null,"",null,"",null,"",null,"",null,"","","","",null,"","","",null,"",null,"",null,""]
[0,0,null,null,null,null,null,null,"","",null,null,null,null,null,null,null,null,null,null,null,null,null,null,null,null,null,null,null,null,null,null,null,null,null,null,null,null,null,null,null,null,null,null,null,null,null,null,null,null,"","","","","","",null,"","","","",null,"",null,"",null,"",null,"",null,"",null,"",null,"","","","",null,"","","",null,"",null,"",null,""]
[0,0,null,null,null,null,null,null,"","",null,null,null,null,null,null,null,null,null,null,null,null,null,null,null,null,null,null,null,null,null,null,null,null,null,null,null,null,null,null,null,null,null,null,null,null,null,null,null,null,"","","","","","",null,"","","","",null,"",null,"",null,"",null,"",null,"",null,"",null,"","","","",null,"","","",null,"",null,"",null,""]
[0,0,null,null,null,null,null,null,"","",null,null,null,null,null,null,null,null,null,null,null,null,null,null,null,null,null,null,null,null,null,null,null,null,null,null,null,null,null,null,null,null,null,null,null,null,null,null,null,null,"","","","","","",null,"","","","",null,"",null,"",null,"",null,"",null,"",null,"",null,"","","","",null,"","","",null,"",null,"",null,""]
[0,0,null,null,null,null,null,null,"","",null,null,null,null,null,null,null,null,null,null,null,null,null,null,null,null,null,null,null,null,null,null,null,null,null,null,null,null,null,null,null,null,null,null,null,null,null,null,null,null,"","","","","","",null,"","","","",null,"",null,"",null,"",null,"",null,"",null,"",null,"","","","",null,"","","",null,"",null,"",null,""]
[0,0,null,null,null,null,null,null,"","",null,null,null,null,null,null,null,null,null,null,null,null,null,null,null,null,null,null,null,null,null,null,null,null,null,null,null,null,null,null,null,null,null,null,null,null,null,null,null,null,"","","","","","",null,"","","","",null,"",null,"",null,"",null,"",null,"",null,"",null,"","","","",null,"","","",null,"",null,"",null,""]
[0,0,null,null,null,null,null,null,"","",null,null,null,null,null,null,null,null,null,null,null,null,null,null,null,null,null,null,null,null,null,null,null,null,null,null,null,null,null,null,null,null,null,null,null,null,null,null,null,null,"","","","","","",null,"","","","",null,"",null,"",null,"",null,"",null,"",null,"",null,"","","","",null,"","","",null,"",null,"",null,""]
[0,0,null,null,null,null,null,null,"","",null,null,null,null,null,null,null,null,null,null,null,null,null,null,null,null,null,null,null,null,null,null,null,null,null,null,null,null,null,null,null,null,null,null,null,null,null,null,null,null,"","","","","","",null,"","","","",null,"",null,"",null,"",null,"",null,"",null,"",null,"","","","",null,"","","",null,"",null,"",null,""]
[0,0,null,null,null,null,null,null,"","",null,null,null,null,null,null,null,null,null,null,null,null,null,null,null,null,null,null,null,null,null,null,null,null,null,null,null,null,null,null,null,null,null,null,null,null,null,null,null,null,"","","","","","",null,"","","","",null,"",null,"",null,"",null,"",null,"",null,"",null,"","","","",null,"","","",null,"",null,"",null,""]
[0,0,null,null,null,null,null,null,"","",null,null,null,null,null,null,null,null,null,null,null,null,null,null,null,null,null,null,null,null,null,null,null,null,null,null,null,null,null,null,null,null,null,null,null,null,null,null,null,null,"","","","","","",null,"","","","",null,"",null,"",null,"",null,"",null,"",null,"",null,"","","","",null,"","","",null,"",null,"",null,""]
[0,0,null,null,null,null,null,null,"","",null,null,null,null,null,null,null,null,null,null,null,null,null,null,null,null,null,null,null,null,null,null,null,null,null,null,null,null,null,null,null,null,null,null,null,null,null,null,null,null,"","","","","","",null,"","","","",null,"",null,"",null,"",null,"",null,"",null,"",null,"","","","",null,"","","",null,"",null,"",null,""]
[0,0,null,null,null,null,null,null,"","",null,null,null,null,null,null,null,null,null,null,null,null,null,null,null,null,null,null,null,null,null,null,null,null,null,null,null,null,null,null,null,null,null,null,null,null,null,null,null,null,"","","","","","",null,"","","","",null,"",null,"",null,"",null,"",null,"",null,"",null,"","","","",null,"","","",null,"",null,"",null,""]
[0,0,null,null,null,null,null,null,"","",null,null,null,null,null,null,null,null,null,null,null,null,null,null,null,null,null,null,null,null,null,null,null,null,null,null,null,null,null,null,null,null,null,null,null,null,null,null,null,null,"","","","","","",null,"","","","",null,"",null,"",null,"",null,"",null,"",null,"",null,"","","","",null,"","","",null,"",null,"",null,""]
[0,0,null,null,null,null,null,null,"","",null,null,null,null,null,null,null,null,null,null,null,null,null,null,null,null,null,null,null,null,null,null,null,null,null,null,null,null,null,null,null,null,null,null,null,null,null,null,null,null,"","","","","","",null,"","","","",null,"",null,"",null,"",null,"",null,"",null,"",null,"","","","",null,"","","",null,"",null,"",null,""]
[0,0,null,null,null,null,null,null,"","",null,null,null,null,null,null,null,null,null,null,null,null,null,null,null,null,null,null,null,null,null,null,null,null,null,null,null,null,null,null,null,null,null,null,null,null,null,null,null,null,"","","","","","",null,"","","","",null,"",null,"",null,"",null,"",null,"",null,"",null,"","","","",null,"","","",null,"",null,"",null,""]
[0,0,null,null,null,null,null,null,"","",null,null,null,null,null,null,null,null,null,null,null,null,null,null,null,null,null,null,null,null,null,null,null,null,null,null,null,null,null,null,null,null,null,null,null,null,null,null,null,null,"","","","","","",null,"","","","",null,"",null,"",null,"",null,"",null,"",null,"",null,"","","","",null,"","","",null,"",null,"",null,""]
[0,0,null,null,null,null,null,null,"","",null,null,null,null,null,null,null,null,null,null,null,null,null,null,null,null,null,null,null,null,null,null,null,null,null,null,null,null,null,null,null,null,null,null,null,null,null,null,null,null,"","","","","","",null,"","","","",null,"",null,"",null,"",null,"",null,"",null,"",null,"","","","",null,"","","",null,"",null,"",null,""]
[0,0,null,null,null,null,null,null,"","",null,null,null,null,null,null,null,null,null,null,null,null,null,null,null,null,null,null,null,null,null,null,null,null,null,null,null,null,null,null,null,null,null,null,null,null,null,null,null,null,"","","","","","",null,"","","","",null,"",null,"",null,"",null,"",null,"",null,"",null,"","","","",null,"","","",null,"",null,"",null,""]
[0,0,null,null,null,null,null,null,"","",null,null,null,null,null,null,null,null,null,null,null,null,null,null,null,null,null,null,null,null,null,null,null,null,null,null,null,null,null,null,null,null,null,null,null,null,null,null,null,null,"","","","","","",null,"","","","",null,"",null,"",null,"",null,"",null,"",null,"",null,"","","","",null,"","","",null,"",null,"",null,""]
[0,0,null,null,null,null,null,null,"","",null,null,null,null,null,null,null,null,null,null,null,null,null,null,null,null,null,null,null,null,null,null,null,null,null,null,null,null,null,null,null,null,null,null,null,null,null,null,null,null,"","","","","","",null,"","","","",null,"",null,"",null,"",null,"",null,"",null,"",null,"","","","",null,"","","",null,"",null,"",null,""]
[{"$f":"$G$2","v":0},{"$f":"$G$3","v":0},null,null,null,null,null,null,{"$f":"IFERROR(VLOOKUP(F43,choix_categorie,2,FALSE),\"\")","v":""},{"$f":"IF(AH43<>\"\",IFERROR(VLOOKUP(E43&LEFT(I43,1)&H43,choix_poids,2),\"\"),\"\")","v":""},null,null,null,null,null,null,null,null,null,null,null,null,null,null,null,null,null,null,null,null,null,null,null,null,null,null,null,null,null,null,null,null,null,null,null,null,null,null,null,null,"","","","","","",null,"","","","",null,"",null,"",null,"",null,"",null,"",null,{"$f":"IF(ISERROR(SEARCH(LEFT($I43,1),AH$9,1)),0,IF($I43<>\"\",1,\"\"))","v":""},null,"","","","",null,"","","",null,"",null,"",null,""]
[0,0,null,null,null,null,null,null,"","",null,null,null,null,null,null,null,null,null,null,null,null,null,null,null,null,null,null,null,null,null,null,null,null,null,null,null,null,null,null,null,null,null,null,null,null,null,null,null,null,"","","","","","",null,"","","","",null,"",null,"",null,"",null,"",null,"",null,"",null,"","","","",null,"","","",null,"",null,"",null,""]
[0,0,null,null,null,null,null,null,"","",null,null,null,null,null,null,null,null,null,null,null,null,null,null,null,null,null,null,null,null,null,null,null,null,null,null,null,null,null,null,null,null,null,null,null,null,null,null,null,null,"","","","","","",null,"","","","",null,"",null,"",null,"",null,"",null,"",null,"",null,"","","","",null,"","","",null,"",null,"",null,""]
[0,0,null,null,null,null,null,null,"","",null,null,null,null,null,null,null,null,null,null,null,null,null,null,null,null,null,null,null,null,null,null,null,null,null,null,null,null,null,null,null,null,null,null,null,null,null,null,null,null,"","","","","","",null,"","","","",null,"",null,"",null,"",null,"",null,"",null,"",null,"","","","",null,"","","",null,"",null,"",null,""]
[0,0,null,null,null,null,null,null,"","",null,null,null,null,null,null,null,null,null,null,null,null,null,null,null,null,null,null,null,null,null,null,null,null,null,null,null,null,null,null,null,null,null,null,null,null,null,null,null,null,"","","","","","",null,"","","","",null,"",null,"",null,"",null,"",null,"",null,"",null,"","","","",null,"","","",null,"",null,"",null,""]
[0,0,null,null,null,null,null,null,"","",null,null,null,null,null,null,null,null,null,null,null,null,null,null,null,null,null,null,null,null,null,null,null,null,null,null,null,null,null,null,null,null,null,null,null,null,null,null,null,null,"","","","","","",null,"","","","",null,"",null,"",null,"",null,"",null,"",null,"",null,"","","","",null,"","","",null,"",null,"",null,""]
[0,0,null,null,null,null,null,null,"","",null,null,null,null,null,null,null,null,null,null,null,null,null,null,null,null,null,null,null,null,null,null,null,null,null,null,null,null,null,null,null,null,null,null,null,null,null,null,null,null,"","","","","","",null,"","","","",null,"",null,"",null,"",null,"",null,"",null,"",null,"","","","",null,"","","",null,"",null,"",null,""]
[0,0,null,null,null,null,null,null,"","",null,null,null,null,null,null,null,null,null,null,null,null,null,null,null,null,null,null,null,null,null,null,null,null,null,null,null,null,null,null,null,null,null,null,null,null,null,null,null,null,"","","","","","",null,"","","","",null,"",null,"",null,"",null,"",null,"",null,"",null,"","","","",null,"","","",null,"",null,"",null,""]
[0,0,null,null,null,null,null,null,"","",null,null,null,null,null,null,null,null,null,null,null,null,null,null,null,null,null,null,null,null,null,null,null,null,null,null,null,null,null,null,null,null,null,null,null,null,null,null,null,null,"","","","","","",null,"","","","",null,"",null,"",null,"",null,"",null,"",null,"",null,"","","","",null,"","","",null,"",null,"",null,""]
[0,0,null,null,null,null,null,null,"","",null,null,null,null,null,null,null,null,null,null,null,null,null,null,null,null,null,null,null,null,null,null,null,null,null,null,null,null,null,null,null,null,null,null,null,null,null,null,null,null,"","","","","","",null,"","","","",null,"",null,"",null,"",null,"",null,"",null,"",null,"","","","",null,"","","",null,"",null,"",null,""]
[0,0,null,null,null,null,null,null,"","",null,null,null,null,null,null,null,null,null,null,null,null,null,null,null,null,null,null,null,null,null,null,null,null,null,null,null,null,null,null,null,null,null,null,null,null,null,null,null,null,"","","","","","",null,"","","","",null,"",null,"",null,"",null,"",null,"",null,"",null,"","","","",null,"","","",null,"",null,"",null,""]
[0,0,null,null,null,null,null,null,"","",null,null,null,null,null,null,null,null,null,null,null,null,null,null,null,null,null,null,null,null,null,null,null,null,null,null,null,null,null,null,null,null,null,null,null,null,null,null,null,null,"","","","","","",null,"","","","",null,"",null,"",null,"",null,"",null,"",null,"",null,"","","","",null,"","","",null,"",null,"",null,""]
[0,0,null,null,null,null,null,null,"","",null,null,null,null,null,null,null,null,null,null,null,null,null,null,null,null,null,null,null,null,null,null,null,null,null,null,null,null,null,null,null,null,null,null,null,null,null,null,null,null,"","","","","","",null,"","","","",null,"",null,"",null,"",null,"",null,"",null,"",null,"","","","",null,"","","",null,"",null,"",null,""]
[0,0,null,null,null,null,null,null,"","",null,null,null,null,null,null,null,null,null,null,null,null,null,null,null,null,null,null,null,null,null,null,null,null,null,null,null,null,null,null,null,null,null,null,null,null,null,null,null,null,"","","","","","",null,"","","","",null,"",null,"",null,"",null,"",null,"",null,"",null,"","","","",null,"","","",null,"",null,"",null,""]
[0,0,null,null,null,null,null,null,"","",null,null,null,null,null,null,null,null,null,null,null,null,null,null,null,null,null,null,null,null,null,null,null,null,null,null,null,null,null,null,null,null,null,null,null,null,null,null,null,null,"","","","","","",null,"","","","",null,"",null,"",null,"",null,"",null,"",null,"",null,"","","","",null,"","","",null,"",null,"",null,""]
[0,0,null,null,null,null,null,null,"","",null,null,null,null,null,null,null,null,null,null,null,null,null,null,null,null,null,null,null,null,null,null,null,null,null,null,null,null,null,null,null,null,null,null,null,null,null,null,null,null,"","","","","","",null,"","","","",null,"",null,"",null,"",null,"",null,"",null,"",null,"","","","",null,"","","",null,"",null,"",null,""]
[0,0,null,null,null,null,null,null,"","",null,null,null,null,null,null,null,null,null,null,null,null,null,null,null,null,null,null,null,null,null,null,null,null,null,null,null,null,null,null,null,null,null,null,null,null,null,null,null,null,"","","","","","",null,"","","","",null,"",null,"",null,"",null,"",null,"",null,"",null,"","","","",null,"","","",null,"",null,"",null,""]
[0,0,null,null,null,null,null,null,"","",null,null,null,null,null,null,null,null,null,null,null,null,null,null,null,null,null,null,null,null,null,null,null,null,null,null,null,null,null,null,null,null,null,null,null,null,null,null,null,null,"","","","","","",null,"","","","",null,"",null,"",null,"",null,"",null,"",null,"",null,"","","","",null,"","","",null,"",null,"",null,""]
[0,0,null,null,null,null,null,null,"","",null,null,null,null,null,null,null,null,null,null,null,null,null,null,null,null,null,null,null,null,null,null,null,null,null,null,null,null,null,null,null,null,null,null,null,null,null,null,null,null,"","","","","","",null,"","","","",null,"",null,"",null,"",null,"",null,"",null,"",null,"","","","",null,"","","",null,"",null,"",null,""]
[0,0,null,null,null,null,null,null,"","",null,null,null,null,null,null,null,null,null,null,null,null,null,null,null,null,null,null,null,null,null,null,null,null,null,null,null,null,null,null,null,null,null,null,null,null,null,null,null,null,"","","","","","",null,"","","","",null,"",null,"",null,"",null,"",null,"",null,"",null,"","","","",null,"","","",null,"",null,"",null,""]
[0,0,null,null,null,null,null,null,"","",null,null,null,null,null,null,null,null,null,null,null,null,null,null,null,null,null,null,null,null,null,null,null,null,null,null,null,null,null,null,null,null,null,null,null,null,null,null,null,null,"","","","","","",null,"","","","",null,"",null,"",null,"",null,"",null,"",null,"",null,"","","","",null,"","","",null,"",null,"",null,""]
[0,0,null,null,null,null,null,null,"","",null,null,null,null,null,null,null,null,null,null,null,null,null,null,null,null,null,null,null,null,null,null,null,null,null,null,null,null,null,null,null,null,null,null,null,null,null,null,null,null,"","","","","","",null,"","","","",null,"",null,"",null,"",null,"",null,"",null,"",null,"","","","",null,"","","",null,"",null,"",null,""]
[0,0,null,null,null,null,null,null,"","",null,null,null,null,null,null,null,null,null,null,null,null,null,null,null,null,null,null,null,null,null,null,null,null,null,null,null,null,null,null,null,null,null,null,null,null,null,null,null,null,"","","","","","",null,"","","","",null,"",null,"",null,"",null,"",null,"",null,"",null,"","","","",null,"","","",null,"",null,"",null,""]
[0,0,null,null,null,null,null,null,"","",null,null,null,null,null,null,null,null,null,null,null,null,null,null,null,null,null,null,null,null,null,null,null,null,null,null,null,null,null,null,null,null,null,null,null,null,null,null,null,null,"","","","","","",null,"","","","",null,"",null,"",null,"",null,"",null,"",null,"",null,"","","","",null,"","","",null,"",null,"",null,""]
[0,0,null,null,null,null,null,null,"","",null,null,null,null,null,null,null,null,null,null,null,null,null,null,null,null,null,null,null,null,null,null,null,null,null,null,null,null,null,null,null,null,null,null,null,null,null,null,null,null,"","","","","","",null,"","","","",null,"",null,"",null,"",null,"",null,"",null,"",null,"","","","",null,"","","",null,"",null,"",null,""]

{"sheet":"combat par équipe","index":2,"n_rows":18,"n_cols":10,"rows_kept":18,"cut":false,"hidden":false,"merged":[[13,2,13,9],[1,3,1,7],[3,3,5,7],[9,3,9,4],[9,6,9,8],[6,3,6,7]]}
[]
[]
[]
[null,null,null,{"$f":"'Technique et combat'!C2","v":" CHAMPIONNAT DE FRANCE  VOVINAM VIET VO  DAO\n Cadets, Juniors, Seniors\n mars 2016"}]
[]
[]
[null,null,null,"INSCRIPTION COMBAT PAR EQUIPE"]
[]
[]
[null,null,"N° club  FFKDA : ",null,null,"Ville : "]
[]
[]
["Club","Ville","NOM","PRENOM","SEXE\nF \nou \nM","Poids","Annee de naiss\n\n(19XX)","N° licence \nFFKDA","GRADE\nCB0\n1,2,3\nCJ, CJ1 et +","Observations"]
[null,null,"2 EQUIPES maximum par club ou par entente d'une même ligue\nL'EQUIPE DE COMBATTANTS EST A DETERMINER A L'AVANCE ET NE SERA PAS MODIFIEE"]
[{"$f":"$D$10","v":0},{"$f":"$G$10","v":0},null,null,null,null,null,null,null,"N° 1 CAPITAINE"]
[{"$f":"$D$10","v":0},{"$f":"$G$10","v":0},null,null,null,null,null,null,null,"N° 2"]
[{"$f":"$D$10","v":0},{"$f":"$G$10","v":0},null,null,null,null,null,null,null,"N° 3"]
[null,null,"Se reporter au règlement compétition § combat par équipe pour le déroulement de la compétition et les équipements de protection"]

{"sheet":"DATA-INFO","index":3,"n_rows":102,"n_cols":27,"rows_kept":102,"cut":false,"hidden":true,"merged":[]}
[null,"Grade",null,"Age",null,"Poids",null,"Club",null,"NAISSANCE","Catégorie",null,"SEXE","POIDS","CATE","compil","Catégorie","CB","CJ",null,null,null,null,null,null,null,{"$f":"TODAY()","v":"2016-02-22"}]
[null,"-",null,"-",null,"_",null,"_",null,1911,"SENIOR",null,"F",null,"C",{"$f":"M2&O2&N2","v":"FC"},"Pas connu"]
[null,"BC",null,"MPOUSSIN",null,"Moins de 47 kg",null,"Ajac",null,1912,"SENIOR",null,"F",20,"C","FC20","Moins de 47 kg","31","43"]
[null,"BC 1",null,"POUSSIN",null,"Moins de 48 kg",null,"Bert",null,1913,"SENIOR",null,"F",46,"C","FC46","Moins de 47 kg","31","43"]
[null,"BC 2",null,"PUPILLE",null,"Moins de 50 kg",null,"Boul",null,1914,"SENIOR",null,"F",47,"C","FC47","Moins de 54 kg","35","47"]
[null,"BC 3",null,"BENJAMIN",null,"Moins de 52 kg",null,"Brie",null,1915,"SENIOR",null,"F",54,"C","FC54","54 kg et plus","36","48"]
[null,"BF 1",null,"MINIME",null,"Moins de 53 kg",null,"Buss",null,1916,"SENIOR",null,"F",99,"C","FC99","54 kg et plus","36","48"]
[null,"BF 2",null,"CADET",null,"Moins de 54 kg",null,"Chev",null,1917,"SENIOR",null,"F",null,"J","FJ","Pas connu"]
[null,"BF 3",null,"JUNIOR",null,"Moins de 55 kg",null,"Crua",null,1918,"SENIOR",null,"F",20,"J","FJ20","Moins de 48 kg","32","44"]
[null,"CB",null,"SENIOR",null,"Moins de 57 kg",null,"Emer",null,1919,"SENIOR",null,"F",47,"J","FJ47","Moins de 48 kg","32","44"]
[null,"CB 1",null,"Tous",null,"Moins de 59 kg",null,"Lesi",null,1920,"SENIOR",null,"F",48,"J","FJ48","Moins de 53 kg","34","46"]
[null,"CB 2",null,null,null,"Moins de 60 kg",null,"Lina",null,1921,"SENIOR",null,"F",53,"J","FJ53","Moins de 59 kg","38","50"]
[null,"CB 3",null,null,null,"Moins de 61 kg",null,"Mars",null,1922,"SENIOR",null,"F",59,"J","FJ59","59 kg et plus","39","51"]
[null,"CB J",null,null,null,"Moins de 63 kg",null,"Mart",null,1923,"SENIOR",null,"F",99,"J","FJ99","59 kg et plus","39","51"]
[null,"CJ 1",null,null,null,"Moins de 67 kg",null,"Nois",null,1924,"SENIOR",null,"F",null,"S","FS","Pas connu"]
[null,"CJ 2",null,null,null,"Moins de 68 kg",null,"Ozoi",null,1925,"SENIOR",null,"F",20,"S","FS20","Moins de 50 kg","33","45"]
[null,"CJ 3",null,null,null,"Moins de 70 kg",null,"Prec",null,1926,"SENIOR",null,"F",49,"S","FS49","Moins de 50 kg","33","45"]
[null,"CJ 4",null,null,null,"Moins de 75 kg",null,"Rois",null,1927,"SENIOR",null,"F",50,"S","FS50","Moins de 55 kg","37","49"]
[null,"CR 1",null,null,null,"Moins de 76 kg",null,"Vars",null,1928,"SENIOR",null,"F",55,"S","FS55","Moins de 61 kg","40","52"]
[null,"Toutes",null,null,null,"Moins de 84 kg",null,"Tous",null,1929,"SENIOR",null,"F",61,"S","FS61","Moins de 68 kg","41","53"]
[null,null,null,null,null,"54 kg et plus",null,null,null,1930,"SENIOR",null,"F",68,"S","FS68","68 kg et plus","42","54"]
[null,null,null,null,null,"59 kg et plus",null,null,null,1931,"SENIOR",null,"F",99,"S","FS99","68 kg et plus","42","54"]
[null,null,null,null,null,"68 kg et plus",null,null,null,1932,"SENIOR",null,"M",null,"C","MC","Pas connu"]
[null,null,null,null,null,"70 kg et plus",null,null,null,1933,"SENIOR",null,"M",20,"C","MC20","Moins de 52 kg","01","16"]
[null,null,null,null,null,"76 kg et plus",null,null,null,1934,"SENIOR",null,"M",51,"C","MC51","Moins de 52 kg","01","16"]
[null,null,null,null,null,"84 kg et plus",null,null,null,1935,"SENIOR",null,"M",52,"C","MC52","Moins de 57 kg","03","18"]
[null,null,null,null,null,"Tous",null,null,null,1936,"SENIOR",null,"M",57,"C","MC57","Moins de 63 kg","06","21"]
[null,null,null,null,null,null,null,null,null,1937,"SENIOR",null,"M",63,"C","MC63","Moins de 70 kg","09","24"]
[null,null,null,null,null,null,null,null,null,1938,"SENIOR",null,"M",70,"C","MC70","70 kg et plus","10","25"]
[null,null,null,null,null,null,null,null,null,1939,"SENIOR",null,"M",99,"C","MC99","70 kg et plus","10","25"]
[null,null,null,null,null,null,null,null,null,1940,"SENIOR",null,"M",null,"J","MJ","Pas connu"]
[null,null,null,null,null,null,null,null,null,1941,"SENIOR",null,"M",20,"J","MJ20","Moins de 55 kg","02","17"]
[null,null,null,null,null,null,null,null,null,1942,"SENIOR",null,"M",54,"J","MJ54","Moins de 55 kg","02","17"]
[null,null,null,null,null,null,null,null,null,1943,"SENIOR",null,"M",55,"J","MJ55","Moins de 61 kg","05","20"]
[null,null,null,null,null,null,null,null,null,1944,"SENIOR",null,"M",61,"J","MJ61","Moins de 68 kg","08","23"]
[null,null,null,null,null,null,null,null,null,1945,"SENIOR",null,"M",68,"J","MJ68","Moins de 76 kg","12","27"]
[null,null,null,null,null,null,null,null,null,1946,"SENIOR",null,"M",76,"J","MJ76","76 kg et plus","13","28"]
[null,null,null,null,null,null,null,null,null,1947,"SENIOR",null,"M",99,"J","MJ99","76 kg et plus","13","28"]
[null,null,null,null,null,null,null,null,null,1948,"SENIOR",null,"M",null,"S","MS","Pas connu"]
[null,null,null,null,null,null,null,null,null,1949,"SENIOR",null,"M",20,"S","MS20","Moins de 60 kg","04","19"]
[null,null,null,null,null,null,null,null,null,1950,"SENIOR",null,"M",59,"S","MS59","Moins de 60 kg","04","19"]
[null,null,null,null,null,null,null,null,null,1951,"SENIOR",null,"M",60,"S","MS60","Moins de 67 kg","07","22"]
[null,null,null,null,null,null,null,null,null,1952,"SENIOR",null,"M",67,"S","MS67","Moins de 75 kg","11","26"]
[null,null,null,null,null,null,null,null,null,1953,"SENIOR",null,"M",75,"S","MS75","Moins de 84 kg","14","29"]
[null,null,null,null,null,null,null,null,null,1954,"SENIOR",null,"M",84,"S","MS84","84 kg et plus","15","30"]
[null,null,null,null,null,null,null,null,null,1955,"SENIOR",null,"M",99,"S","MS99","84 kg et plus","15","30"]
[null,null,null,null,null,null,null,null,null,1956,"SENIOR"]
[null,null,null,null,null,null,null,null,null,1957,"SENIOR"]
[null,null,null,null,null,null,null,null,null,1958,"SENIOR"]
[null,null,null,null,null,null,null,null,null,1959,"SENIOR"]
[null,null,null,null,null,null,null,null,null,1960,"SENIOR"]
[null,null,null,null,null,null,null,null,null,1961,"SENIOR"]
[null,null,null,null,null,null,null,null,null,1962,"SENIOR"]
[null,null,null,null,null,null,null,null,null,1963,"SENIOR"]
[null,null,null,null,null,null,null,null,null,1964,"SENIOR"]
[null,null,null,null,null,null,null,null,null,1965,"SENIOR"]
[null,null,null,null,null,null,null,null,null,1966,"SENIOR"]
[null,null,null,null,null,null,null,null,null,1967,"SENIOR"]
[null,null,null,null,null,null,null,null,null,1968,"SENIOR"]
[null,null,null,null,null,null,null,null,null,1969,"SENIOR"]
[null,null,null,null,null,null,null,null,null,1970,"SENIOR"]
[null,null,null,null,null,null,null,null,null,1971,"SENIOR"]
[null,null,null,null,null,null,null,null,null,1972,"SENIOR"]
[null,null,null,null,null,null,null,null,null,1973,"SENIOR"]
[null,null,null,null,null,null,null,null,null,1974,"SENIOR"]
[null,null,null,null,null,null,null,null,null,1975,"SENIOR"]
[null,null,null,null,null,null,null,null,null,1976,"SENIOR"]
[null,null,null,null,null,null,null,null,null,1977,"SENIOR"]
[null,null,null,null,null,null,null,null,null,1978,"SENIOR"]
[null,null,null,null,null,null,null,null,null,1979,"SENIOR"]
[null,null,null,null,null,null,null,null,null,1980,"SENIOR"]
[null,null,null,null,null,null,null,null,null,1981,"SENIOR"]
[null,null,null,null,null,null,null,null,null,1982,"SENIOR"]
[null,null,null,null,null,null,null,null,null,1983,"SENIOR"]
[null,null,null,null,null,null,null,null,null,1984,"SENIOR"]
[null,null,null,null,null,null,null,null,null,1985,"SENIOR"]
[null,null,null,null,null,null,null,null,null,1986,"SENIOR"]
[null,null,null,null,null,null,null,null,null,1987,"SENIOR"]
[null,null,null,null,null,null,null,null,null,1988,"SENIOR"]
[null,null,null,null,null,null,null,null,null,1989,"SENIOR"]
[null,null,null,null,null,null,null,null,null,1990,"SENIOR"]
[null,null,null,null,null,null,null,null,null,1991,"SENIOR"]
[null,null,null,null,null,null,null,null,null,1992,"SENIOR"]
[null,null,null,null,null,null,null,null,null,1993,"SENIOR"]
[null,null,null,null,null,null,null,null,null,1994,"SENIOR"]
[null,null,null,null,null,null,null,null,null,1995,"SENIOR"]
[null,null,null,null,null,null,null,null,null,1996,"SENIOR"]
[null,null,null,null,null,null,null,null,null,1997,"SENIOR"]
[null,null,null,null,null,null,null,null,null,1998,"JUNIOR"]
[null,null,null,null,null,null,null,null,null,1999,"JUNIOR"]
[null,null,null,null,null,null,null,null,null,2000,"CADET"]
[null,null,null,null,null,null,null,null,null,2001,"CADET"]
[null,null,null,null,null,null,null,null,null,2002,"MINIME"]
[null,null,null,null,null,null,null,null,null,2003,"MINIME"]
[null,null,null,null,null,null,null,null,null,2004,"BENJAMIN"]
[null,null,null,null,null,null,null,null,null,2005,"BENJAMIN"]
[null,null,null,null,null,null,null,null,null,2006,"PUPILLE"]
[null,null,null,null,null,null,null,null,null,2007,"PUPILLE"]
[null,null,null,null,null,null,null,null,null,2008,"POUSSIN"]
[null,null,null,null,null,null,null,null,null,2009,"POUSSIN"]
[null,null,null,null,null,null,null,null,null,2010,"MPOUSSIN"]
[null,null,null,null,null,null,null,null,null,2011,"MPOUSSIN"]